fUST/lending_fUST_20250924
["ID","MTS","AMOUNT","RATE_DAILY","PERIOD"]
[387232756,1758664233051,-480.0,0.00019178,2]
[387232758,1758664233061,-480.0,0.00019178,2]
[387232760,1758664233071,-523.39835211,0.00019178,2]
[387232762,1758664233081,-480.0,0.00019178,2]
[387232764,1758664233091,-480.0,0.00019178,2]
[387232766,1758664233101,-480.0,0.00019178,2]
[387232768,1758664233110,-480.0,0.00019178,2]
[387232770,1758664233121,-480.0,0.00019178,2]
[387232772,1758664233130,-482.02842509,0.00019178,2]
[387232774,1758664233139,-480.0,0.00019178,2]
[387232776,1758664233149,-480.0,0.00019178,2]
[387232778,1758664233159,-480.0,0.00019178,2]
[387232780,1758664233169,-480.0,0.00019178,2]
[387232782,1758664233180,-480.0,0.00019178,2]
[387232784,1758664233190,-1503.76,0.00019178,2]
[387232786,1758664233200,-480.0,0.00019178,2]
[387232788,1758664233209,-480.0,0.00019178,2]
[387232790,1758664233218,-169.24111257,0.00019178,2]
[387232929,1758664239111,-388.87888743,0.00019178,2]
[387232931,1758664239123,-480.0,0.00019178,2]
[387232933,1758664239134,-480.0,0.00019178,2]
[387232936,1758664239145,-480.0,0.00019178,2]
[387232938,1758664239155,-480.0,0.00019178,2]
[387232940,1758664239166,-480.0,0.00019178,2]
[387232942,1758664239178,-480.0,0.00019178,2]
[387232944,1758664239189,-886.37111252,0.00019178,2]
[387232949,1758664239227,-554.73888748,0.00019178,2]
[387232951,1758664239244,-480.0,0.00019178,2]
[387232953,1758664239261,-480.0,0.0001945,2]
[387232955,1758664239273,-480.0,0.0001945,2]
[387232958,1758664239283,-480.0,0.00019451,2]
[387232960,1758664239294,-480.0,0.00019451,2]
[387232962,1758664239306,-491.40620681,0.00019451,2]
[387232964,1758664239316,-480.0,0.00019451,2]
[387232966,1758664239327,-241.84759838,0.00019451,2]
[387233120,1758664240776,-238.15240162,0.00019451,2]
[387233122,1758664240786,-294.27655373,0.00019451,2]
[387233406,1758664243800,-480.0,0.00019178,2]
[387233409,1758664243812,-185.72344627,0.00019451,2]
[387233411,1758664243822,-480.0,0.00019451,2]
[387233413,1758664243833,-480.0,0.00019451,2]
[387233415,1758664243844,-480.0,0.00019451,2]
[387233417,1758664243855,-480.0,0.00019451,2]
[387233419,1758664243866,-484.47153492,0.00019451,2]
[387233421,1758664243876,-480.0,0.00019451,2]
[387233423,1758664243888,-480.0,0.00019451,2]
[387233425,1758664243899,-480.0,0.00019451,2]
[387233428,1758664243910,-480.0,0.00019451,2]
[387233430,1758664243921,-484.05652145,0.00019451,2]
[387233432,1758664243932,-284.71951019,0.00019451,2]
[387233434,1758664243943,-393.1357324,0.00019451,2]
[387233436,1758664243953,-480.0,0.00019451,2]
[387233439,1758664243966,-480.0,0.00019451,2]
[387233441,1758664243977,-480.0,0.00019451,2]
[387233443,1758664243987,-480.0,0.00019451,2]
[387233445,1758664243997,-480.0,0.00019451,2]
[387233447,1758664244007,-480.0,0.00019451,2]
[387233449,1758664244016,-480.0,0.00019451,2]
[387233451,1758664244026,-480.0,0.00019451,2]
[387233453,1758664244036,-480.0,0.00019451,2]
[387233455,1758664244046,-480.0,0.00019451,2]
[387233457,1758664244057,-480.0,0.00019451,2]
[387233459,1758664244067,-480.0,0.00019451,2]
[387233461,1758664244078,-480.0,0.00019451,2]
[387233463,1758664244089,-480.0,0.00019451,2]
[387233466,1758664244101,-480.0,0.00019451,2]
[387233468,1758664244112,-480.0,0.00019451,2]
[387233470,1758664244123,-249.16849712,0.00019451,2]
[387233472,1758664244135,-480.0,0.00019451,2]
[387233474,1758664244145,-480.0,0.00019451,2]
[387233476,1758664244155,-480.0,0.00019451,2]
[387233478,1758664244164,-480.0,0.00019451,2]
[387233480,1758664244174,-480.0,0.00019451,2]
[387233482,1758664244184,-500.0,0.00019451,2]
[387233484,1758664244194,-500.0,0.00019451,2]
[387233486,1758664244204,-500.0,0.00019451,2]
[387233488,1758664244214,-155.77269503,0.00019451,2]
[387233490,1758664244224,-320.0,0.00019451,2]
[387233492,1758664244235,-500.0,0.00019451,2]
[387233495,1758664244245,-500.0,0.00019451,2]
[387233497,1758664244256,-500.0,0.00019451,2]
[387233499,1758664244266,-310.6299196,0.00019451,2]
[387233501,1758664244276,-480.0,0.00019452,2]
[387233503,1758664244286,-480.0,0.00019452,2]
[387233505,1758664244296,-539.05,0.00019452,2]
[387233507,1758664244305,-480.0,0.00019452,2]
[387233509,1758664244316,-480.0,0.00019452,2]
[387233511,1758664244326,-480.0,0.00019452,2]
[387233513,1758664244337,-480.0,0.00019452,2]
[387233515,1758664244347,-480.0,0.00019452,2]
[387233517,1758664244362,-480.0,0.00019452,2]
[387233520,1758664244372,-480.0,0.00019452,2]
[387233522,1758664244382,-558.12,0.00019452,2]
[387233524,1758664244392,-480.0,0.00019452,2]
[387233526,1758664244403,-480.0,0.00019452,2]
[387233528,1758664244413,-480.0,0.00019452,2]
[387233530,1758664244422,-480.0,0.00019452,2]
[387233532,1758664244434,-1441.11,0.00019452,2]
[387233534,1758664244444,-480.0,0.00019452,2]
[387233536,1758664244454,-480.0,0.00019452,2]
[387233538,1758664244464,-500.0,0.00019452,2]
[387233540,1758664244474,-480.0,0.00019724,2]
[387233542,1758664244484,-480.0,0.00019724,2]
[387233544,1758664244494,-480.0,0.00019725,2]
[387233547,1758664244504,-460.00032215,0.00019725,2]
[387233549,1758664244515,-618.45,0.00019726,2]
[387233551,1758664244525,-480.0,0.00019726,2]
[387233553,1758664244535,-250.50164789,0.00019726,2]
[387233555,1758664244545,-480.0,0.00019726,2]
[387233557,1758664244554,-480.0,0.00019726,2]
[387233559,1758664244564,-480.0,0.00019726,2]
[387233561,1758664244575,-480.0,0.00019726,2]
[387233577,1758664244688,-558.12,0.00019726,2]
[387233579,1758664244728,-480.0,0.00019726,2]
[387233581,1758664244738,-480.0,0.00019726,2]
[387233583,1758664244747,-480.0,0.00019726,2]
[387233585,1758664244756,-480.0,0.00019726,2]
[387233587,1758664244766,-1441.11,0.00019726,2]
[387233589,1758664244775,-500.0,0.00019731,2]
[387233591,1758664244784,-480.0,0.00019899,2]
[387233593,1758664244794,-480.0,0.00019899,2]
[387233595,1758664244803,-482.41099886,0.00019899,2]
[387233597,1758664244813,-480.0,0.00019899,2]
[387233599,1758664244823,-480.0,0.00019899,2]
[387233601,1758664244832,-480.0,0.00019899,2]
[387233603,1758664244842,-480.0,0.00019899,2]
[387233605,1758664244851,-480.0,0.00019899,2]
[387233607,1758664244861,-480.0,0.00019899,2]
[387233609,1758664244871,-480.0,0.00019899,2]
[387233611,1758664244880,-480.0,0.00019899,2]
[387233613,1758664244890,-480.0,0.00019899,2]
[387233615,1758664244899,-480.0,0.00019899,2]
[387233617,1758664244909,-480.0,0.00019899,2]
[387233619,1758664244918,-2287.85009843,0.000199,2]
[387233621,1758664244927,-480.0,0.00019998,2]
[387233623,1758664244939,-480.0,0.00019998,2]
[387233625,1758664244949,-480.0,0.00019999,2]
[387233627,1758664244958,-480.0,0.0002,2]
[387233629,1758664244968,-480.0,0.0002,2]
[387233631,1758664244978,-461.43279516,0.0002,2]
[387233633,1758664244988,-558.12,0.0002,2]
[387233635,1758664244998,-480.0,0.0002,2]
[387233637,1758664245009,-480.0,0.0002,2]
[387233639,1758664245019,-480.0,0.0002,2]
[387233641,1758664245028,-480.0,0.0002,2]
[387233643,1758664245038,-1441.11,0.0002,2]
[387233645,1758664245047,-480.0,0.00020173,2]
[387233647,1758664245056,-480.0,0.00020173,2]
[387233649,1758664245066,-480.0,0.00020173,2]
[387233651,1758664245075,-480.0,0.00020173,2]
[387233653,1758664245084,-480.0,0.00020173,2]
[387233655,1758664245094,-480.0,0.00020173,2]
[387233657,1758664245103,-480.0,0.00020173,2]
[387233659,1758664245114,-471.42,0.00020173,2]
[387233661,1758664245123,-480.0,0.00020173,2]
[387233663,1758664245132,-480.0,0.00020173,2]
[387233665,1758664245141,-549.99,0.00020272,2]
[387233667,1758664245151,-480.0,0.00020272,2]
[387233669,1758664245160,-480.0,0.00020273,2]
[387233671,1758664245169,-558.12,0.00020273,2]
[387233672,1758664245179,-480.0,0.00020273,2]
[387233674,1758664245188,-480.0,0.00020273,2]
[387233676,1758664245197,-212.71,0.00020273,2]
[387233678,1758664245207,-480.0,0.00020273,2]
[387233680,1758664245219,-1441.11,0.00020273,2]
[387233683,1758664245229,-1000.0,0.00020279,2]
[387233685,1758664245239,-480.0,0.00020422,2]
[387233687,1758664245249,-480.0,0.00020422,2]
[387233689,1758664245258,-480.0,0.00020422,2]
[387233691,1758664245267,-417.15472785,0.00020425,2]
[387233693,1758664245276,-233.58652103,0.00020426,2]
[387233694,1758664245286,-160.0,0.00020426,2]
[387233696,1758664245296,-1879.91,0.00020429,2]
[387233697,1758664245305,-480.0,0.00020447,2]
[387233698,1758664245314,-480.0,0.00020447,2]
[387233699,1758664245323,-480.0,0.00020447,2]
[387233700,1758664245332,-480.0,0.00020447,2]
[387233701,1758664245341,-480.0,0.00020447,2]
[387233702,1758664245350,-480.0,0.00020447,2]
[387233703,1758664245363,-480.0,0.00020447,2]
[387233704,1758664245373,-480.0,0.00020447,2]
[387233705,1758664245382,-480.0,0.00020447,2]
[387233706,1758664245391,-480.0,0.00020546,2]
[387233707,1758664245400,-480.0,0.00020547,2]
[387233708,1758664245409,-558.12,0.00020547,2]
[387233709,1758664245418,-294.56,0.00020547,2]
[387233710,1758664245428,-438.24,0.00020547,2]
[387233711,1758664245437,-480.0,0.00020547,2]
[387233712,1758664245447,-1441.11,0.00020547,2]
[387233713,1758664245456,-156.3046298,0.00020596,2]
[387233714,1758664245465,-480.0,0.00020696,2]
[387233715,1758664245474,-480.0,0.00020696,2]
[387233716,1758664245483,-480.0,0.00020696,2]
[387233717,1758664245492,-480.0,0.00020721,2]
[387233718,1758664245501,-480.0,0.00020721,2]
[387233719,1758664245510,-480.0,0.00020721,2]
[387233720,1758664245519,-480.0,0.00020721,2]
[387233721,1758664245529,-535.2,0.00020721,2]
[387233722,1758664245538,-480.0,0.00020721,2]
[387233723,1758664245547,-480.0,0.00020721,2]
[387233724,1758664245557,-480.0,0.00020721,2]
[387233725,1758664245566,-480.0,0.0002082,2]
[387233726,1758664245575,-261.25306709,0.0002082,2]
[387233727,1758664245584,-500.0,0.0002082,2]
[387233729,1758664245594,-394.32096868,0.0002082,2]
[387233730,1758664245604,-500.0,0.0002082,2]
[387233732,1758664245614,-500.0,0.0002082,2]
[387233734,1758664245623,-500.0,0.0002082,2]
[387233736,1758664245633,-500.0,0.0002082,2]
[387233738,1758664245642,-480.0,0.00020821,2]
[387233740,1758664245652,-558.12,0.00020821,2]
[387233742,1758664245661,-480.0,0.00020821,2]
[387233744,1758664245671,-1441.11,0.00020821,2]
[387233746,1758664245680,-420.0,0.00020899,2]
[387233748,1758664245689,-480.0,0.0002097,2]
[387233750,1758664245698,-423.36555482,0.0002097,2]
[387233752,1758664245707,-480.0,0.0002097,2]
[387233754,1758664245716,-480.0,0.0002097,2]
[387233756,1758664245725,-480.0,0.0002097,2]
[387233758,1758664245735,-480.0,0.0002097,2]
[387233760,1758664245743,-480.0,0.0002097,2]
[387233762,1758664245753,-480.0,0.0002097,2]
[387233764,1758664245762,-480.0,0.0002097,2]
[387233766,1758664245771,-480.0,0.0002097,2]
[387233768,1758664245780,-480.0,0.0002097,2]
[387233770,1758664245789,-480.0,0.0002097,2]
[387233772,1758664245798,-480.0,0.0002097,2]
[387233774,1758664245808,-480.0,0.0002097,2]
[387233776,1758664245817,-480.0,0.0002097,2]
[387233778,1758664245826,-480.0,0.0002097,2]
[387233780,1758664245836,-480.0,0.0002097,2]
[387233782,1758664245846,-480.0,0.0002097,2]
[387233784,1758664245856,-480.0,0.0002097,2]
[387233786,1758664245866,-480.0,0.0002097,2]
[387233788,1758664245875,-480.0,0.0002097,2]
[387233790,1758664245885,-480.0,0.00020971,2]
[387233792,1758664245894,-334.27914084,0.00020971,2]
[387233794,1758664245903,-246.97530751,0.00020971,2]
[387233796,1758664245913,-2287.85009834,0.00020972,2]
[387233798,1758664245923,-480.0,0.00020995,2]
[387233800,1758664245932,-480.0,0.00020995,2]
[387233802,1758664245942,-480.0,0.00020995,2]
[387233804,1758664245951,-480.0,0.00020995,2]
[387233806,1758664245960,-480.0,0.00020995,2]
[387233807,1758664245970,-537.63,0.00020995,2]
[387233809,1758664245979,-480.0,0.00020995,2]
[387233811,1758664245989,-490.32,0.00021094,2]
[387233813,1758664245998,-480.0,0.00021095,2]
[387233815,1758664246008,-558.12,0.00021095,2]
[387233817,1758664246018,-480.0,0.00021095,2]
[387233819,1758664246027,-1441.11,0.00021095,2]
[387233821,1758664246036,-480.0,0.00021244,2]
[387233823,1758664246046,-578.82701108,0.00021244,2]
[387233825,1758664246056,-480.0,0.00021244,2]
[387233827,1758664246065,-480.0,0.00021244,2]
[387233829,1758664246076,-480.0,0.00021244,2]
[387233831,1758664246086,-480.0,0.00021244,2]
[387233833,1758664246096,-480.0,0.00021244,2]
[387233836,1758664246106,-480.0,0.00021244,2]
[387233838,1758664246116,-480.0,0.00021244,2]
[387233841,1758664246126,-480.0,0.00021244,2]
[387233844,1758664246135,-480.0,0.00021244,2]
[387233846,1758664246144,-480.0,0.00021244,2]
[387233848,1758664246153,-480.0,0.00021245,2]
[387233850,1758664246163,-560.04,0.00021269,2]
[387233852,1758664246172,-480.0,0.00021269,2]
[387233854,1758664246182,-480.0,0.00021269,2]
[387233856,1758664246191,-480.0,0.00021269,2]
[387233858,1758664246200,-316.47,0.00021269,2]
[387233861,1758664246209,-480.0,0.00021269,2]
[387233863,1758664246218,-480.0,0.00021274,2]
[387233865,1758664246227,-480.0,0.00021274,2]
[387233867,1758664246237,-480.0,0.00021369,2]
[387233869,1758664246246,-558.12,0.00021369,2]
[387233871,1758664246256,-480.0,0.00021369,2]
[387233873,1758664246265,-1441.11,0.00021369,2]
[387233875,1758664246274,-480.0,0.00021518,2]
[387233877,1758664246283,-480.0,0.00021518,2]
[387233879,1758664246293,-480.0,0.00021518,2]
[387233881,1758664246302,-480.0,0.00021518,2]
[387233883,1758664246311,-232.2686686,0.00021518,2]
[387233885,1758664246321,-480.0,0.00021518,2]
[387233887,1758664246330,-480.0,0.00021518,2]
[387233889,1758664246341,-480.0,0.00021518,2]
[387233891,1758664246350,-480.0,0.00021518,2]
[387233893,1758664246363,-480.0,0.00021518,2]
[387233895,1758664246372,-480.0,0.00021518,2]
[387233897,1758664246381,-371.65846279,0.00021519,2]
[387233899,1758664246391,-185.61,0.00021543,2]
[387233901,1758664246400,-480.0,0.00021543,2]
[387233903,1758664246409,-194.35895535,0.00021543,2]
[387233905,1758664246419,-480.0,0.00021548,2]
[387233907,1758664246428,-480.0,0.00021548,2]
[387233909,1758664246437,-480.0,0.00021643,2]
[387233911,1758664246447,-558.12,0.00021643,2]
[387233913,1758664246456,-480.0,0.00021643,2]
[387233915,1758664246466,-1441.11,0.00021643,2]
[387233917,1758664246475,-156.3046298,0.00021655,2]
[387233918,1758664246484,-307.99025296,0.00021792,2]
[387233921,1758664246494,-480.0,0.00021792,2]
[387233923,1758664246503,-480.0,0.00021792,2]
[387233924,1758664246512,-480.0,0.00021792,2]
[387233926,1758664246522,-480.0,0.00021792,2]
[387233928,1758664246531,-278.46,0.00021792,2]
[387233930,1758664246540,-480.0,0.00021792,2]
[387233932,1758664246550,-480.0,0.00021792,2]
[387233934,1758664246559,-370.62,0.00021817,2]
[387233936,1758664246568,-480.0,0.00021822,2]
[387233938,1758664246577,-480.0,0.00021822,2]
[387233940,1758664246587,-500.0,0.00021905,2]
[387233942,1758664246597,-392.09001958,0.00021917,2]
[387233944,1758664246606,-558.12,0.00021917,2]
[387233946,1758664246616,-480.0,0.00021917,2]
[387233948,1758664246625,-1441.11,0.00021917,2]
[387233950,1758664246634,-160.0,0.00021956,2]
[387233952,1758664246643,-480.0,0.00022042,2]
[387233954,1758664246652,-480.0,0.00022042,2]
[387233956,1758664246661,-480.0,0.00022042,2]
[387233958,1758664246670,-480.0,0.00022042,2]
[387233960,1758664246680,-480.0,0.00022043,2]
[387233962,1758664246689,-480.0,0.00022043,2]
[387233964,1758664246698,-2287.85009834,0.00022044,2]
[387233966,1758664246708,-480.0,0.00022066,2]
[387233968,1758664246718,-535.68,0.00022066,2]
[387233970,1758664246727,-480.0,0.00022066,2]
[387233972,1758664246736,-480.0,0.00022066,2]
[387233974,1758664246746,-480.0,0.00022066,2]
[387233976,1758664246755,-480.0,0.00022066,2]
[387233978,1758664246764,-480.0,0.00022096,2]
[387233980,1758664246773,-480.0,0.00022096,2]
[387233982,1758664246783,-558.12,0.00022191,2]
[387233984,1758664246793,-480.0,0.00022191,2]
[387233987,1758664246802,-1441.11,0.00022191,2]
[387233990,1758664246811,-3759.81,0.00022286,2]
[387233993,1758664246820,-480.0,0.00022316,2]
[387233998,1758664246830,-480.0,0.00022316,2]
[387234001,1758664246850,-480.0,0.0002234,2]
[387234004,1758664246860,-480.0,0.0002234,2]
[387234007,1758664246870,-480.0,0.0002234,2]
[387234009,1758664246879,-480.0,0.0002234,2]
[387234011,1758664246889,-583.98,0.0002234,2]
[387234014,1758664246899,-480.0,0.0002237,2]
[387234015,1758664246909,-174.27,0.0002237,2]
[387234018,1758664246918,-1000.0,0.00022453,2]
[387234020,1758664246928,-558.12,0.00022465,2]
[387234022,1758664246937,-480.0,0.00022465,2]
[387234024,1758664246946,-1441.11,0.00022465,2]
[387234026,1758664246956,-260.0,0.00022504,2]
[387234028,1758664246965,-480.0,0.0002259,2]
[387234030,1758664246975,-480.0,0.0002259,2]
[387234032,1758664246984,-480.0,0.00022614,2]
[387234034,1758664246994,-519.93,0.00022614,2]
[387234036,1758664247004,-480.0,0.00022614,2]
[387234038,1758664247014,-480.0,0.00022614,2]
[387234040,1758664247023,-480.0,0.00022644,2]
[387234042,1758664247033,-156.3046298,0.00022714,2]
[387234044,1758664247043,-558.12,0.00022739,2]
[387234046,1758664247052,-480.0,0.00022739,2]
[387234048,1758664247062,-1441.11,0.00022739,2]
[387234050,1758664247072,-167.0,0.00022776,2]
[387234052,1758664247082,-480.0,0.00022864,2]
[387234054,1758664247092,-541.95237865,0.00022864,2]
[387234056,1758664247102,-480.0,0.00022888,2]
[387234058,1758664247111,-480.0,0.00022888,2]
[387234060,1758664247121,-480.0,0.00022888,2]
[387234062,1758664247131,-480.0,0.00022918,2]
[387234064,1758664247140,-500.0,0.00022989,2]
[387234066,1758664247150,-160.0,0.00023,2]
[387234068,1758664247159,-1500.0,0.00023001,2]
[387234070,1758664247168,-558.12,0.00023013,2]
[387234072,1758664247178,-413.43625007,0.00023013,2]
[387234074,1758664247187,-1441.11,0.00023013,2]
[387234076,1758664247197,-360.0,0.00023052,2]
[387234078,1758664247206,-2287.85009834,0.00023116,2]
[387234080,1758664247215,-226.65,0.00023138,2]
[387234082,1758664247225,-578.97,0.00023162,2]
[387234084,1758664247234,-480.0,0.00023162,2]
[387234086,1758664247244,-480.0,0.00023162,2]
[387234088,1758664247253,-480.0,0.00023192,2]
[387234090,1758664247263,-500.0,0.00023287,2]
[387234093,1758664247274,-558.12,0.00023287,2]
[387234095,1758664247284,-1154.28,0.00023287,2]
[387234096,1758664247293,-1441.11,0.00023287,2]
[387234099,1758664247303,-480.0,0.00023436,2]
[387234100,1758664247312,-480.0,0.00023436,2]
[387234102,1758664247321,-480.0,0.00023466,2]
[387234104,1758664247331,-840.95527967,0.00023539,2]
[387234106,1758664247340,-2000.0,0.00023549,2]
[387234108,1758664247350,-558.12,0.00023561,2]
[387234110,1758664247363,-1441.11,0.00023561,2]
[387234113,1758664247373,-153.0,0.00023568,2]
[387234115,1758664247383,-153.0,0.00023568,2]
[387234117,1758664247392,-1000.0,0.00023591,5]
[387234119,1758664247403,-460.0,0.000236,2]
[387234121,1758664247413,-151.0,0.000237,10]
[387234122,1758664247423,-209.55,0.0002371,2]
[387234124,1758664247433,-480.0,0.0002371,2]
[387234127,1758664247443,-229.408,0.0002374,4]
[387234129,1758664247453,-480.0,0.0002374,2]
[387234131,1758664247463,-156.3046298,0.00023772,2]
[387234133,1758664247473,-558.12,0.00023835,2]
[387234135,1758664247483,-151.0,0.000239,10]
[387234137,1758664247492,-480.0,0.00023984,2]
[387234139,1758664247502,-151.0,0.00024,7]
[387234141,1758664247512,-480.0,0.00024014,2]
[387234143,1758664247522,-2500.0,0.00024097,2]
[387234145,1758664247531,-558.12,0.00024109,2]
[387234147,1758664247541,-5639.72,0.00024143,2]
[387234149,1758664247551,-165.23691958,0.00024148,2]
[387234165,1758664247561,-2287.85009834,0.00024187,2]
[387234168,1758664247703,-151.0,0.000242,8]
[387234170,1758664247712,-245.49,0.0002421,3]
[387234172,1758664247722,-736.47,0.0002421,3]
[387234174,1758664247731,-91581.5690972,0.0002422,2]
[387234179,1758664247773,-410.0,0.00021203,2]
[387234181,1758664247783,-1680.84,0.00021508,10]
[387234183,1758664247793,-1441.11,0.00023835,2]
[387234185,1758664247803,-1441.11,0.00024109,2]
[387234187,1758664247813,-44190.4309028,0.0002422,2]
[387234189,1758664247823,-284.0,0.00024236,2]
[387234191,1758664247832,-480.0,0.00024258,2]
[387234193,1758664247841,-150.0,0.00024273,2]
[387234195,1758664247851,-480.0,0.00024288,2]
[387234197,1758664247861,-558.12,0.00024383,2]
[387234199,1758664247871,-1441.11,0.00024383,2]
[387234201,1758664247880,-284.0,0.00024387,2]
[387234202,1758664247889,-151.0,0.000244,8]
[387234203,1758664247898,-284.0,0.00024452,2]
[387234204,1758664247908,-284.0,0.00024478,2]
[387234205,1758664247917,-480.0,0.00024532,2]
[387234206,1758664247927,-480.0,0.00024562,2]
[387234207,1758664247937,-284.0,0.00024569,2]
[387234208,1758664247946,-151.0,0.000246,7]
[387234209,1758664247956,-3000.0,0.00024644,2]
[387234210,1758664247966,-284.0,0.00024651,2]
[387234211,1758664247975,-558.12,0.00024657,2]
[387234212,1758664247984,-400.0,0.00024657,2]
[387234214,1758664247994,-400.0,0.00024657,2]
[387234216,1758664248003,-400.0,0.00024657,2]
[387234218,1758664248012,-400.0,0.00024657,2]
[387234220,1758664248022,-400.0,0.00024657,2]
[387234222,1758664248031,-1441.11,0.00024657,2]
[387234224,1758664248040,-150.0,0.00024658,2]
[387234226,1758664248049,-380.0,0.00024658,2]
[387234228,1758664248059,-151.0,0.000247,5]
[387234230,1758664248069,-284.0,0.00024717,2]
[387234232,1758664248078,-2000.0,0.000248,2]
[387234234,1758664248087,-2295.90867606,0.000248,2]
[387234236,1758664248097,-466.5,0.00024806,2]
[387234238,1758664248106,-300.0,0.00024821,2]
[387234240,1758664248115,-284.0,0.00024825,2]
[387234242,1758664248125,-177.03570753,0.00024831,2]
[387234244,1758664248134,-156.3046298,0.00024831,2]
[387234246,1758664248144,-460.86,0.00024836,2]
[387234248,1758664248153,-284.0,0.00024836,2]
[387234250,1758664248163,-5357.12024414,0.0002489,2]
[387234252,1758664248172,-480.0,0.00024899,2]
[387234254,1758664248182,-193.554955,0.000249,7]
[387234256,1758664248191,-79537.66343111,0.000249,2]
[387258343,1758665431945,-300.0,0.00019176,2]
[387258345,1758665431955,-300.0,0.00019176,2]
[387258347,1758665431965,-278.0,0.00019176,2]
[387258349,1758665431974,-300.0,0.00019176,2]
[387258351,1758665431984,-300.0,0.00019176,2]
[387258353,1758665431993,-772.33581034,0.00019176,2]
[387258355,1758665432004,-427.66418966,0.00019176,2]
[387258357,1758665432013,-1773.21431673,0.00019177,7]
[387258362,1758665432059,-226.78568327,0.00019177,7]
[387258363,1758665432068,-893.41431673,0.00019177,7]
[387258364,1758665432079,-277.94464223,0.00019177,7]
[387258365,1758665432119,-545.18028167,0.00019177,7]
[387258366,1758665432131,-326.53162593,0.00019177,7]
[387258367,1758665432141,-500.0,0.00019178,2]
[387258368,1758665432151,-480.0,0.00019178,2]
[387258369,1758665432162,-480.0,0.00019178,2]
[387258370,1758665432173,-480.0,0.00019178,2]
[387258372,1758665432182,-480.0,0.00019178,2]
[387258374,1758665432192,-480.0,0.00019178,2]
[387258376,1758665432202,-480.0,0.00019178,2]
[387258378,1758665432211,-480.0,0.00019178,2]
[387258380,1758665432220,-480.0,0.00019178,2]
[387258382,1758665432230,-511.32,0.00019178,2]
[387258384,1758665432240,-480.0,0.00019178,2]
[387258386,1758665432249,-480.0,0.00019178,2]
[387258388,1758665432260,-480.0,0.00019178,2]
[387258390,1758665432269,-480.0,0.00019178,2]
[387258392,1758665432278,-480.0,0.00019178,2]
[387258394,1758665432288,-480.0,0.00019178,2]
[387258395,1758665432297,-480.0,0.00019178,2]
[387258396,1758665432307,-480.0,0.00019178,2]
[387258397,1758665432316,-480.0,0.00019178,2]
[387258398,1758665432325,-480.0,0.00019178,2]
[387258399,1758665432335,-480.0,0.00019178,2]
[387258400,1758665432344,-480.0,0.00019178,2]
[387258401,1758665432353,-480.0,0.00019178,2]
[387258402,1758665432363,-480.0,0.00019178,2]
[387258403,1758665432373,-480.0,0.00019178,2]
[387258404,1758665432383,-480.0,0.00019178,2]
[387258405,1758665432392,-480.0,0.00019178,2]
[387258406,1758665432402,-480.0,0.00019178,2]